bitfinex/quotes_SOLUSD_20251206
["timestamp","ask_amount","ask_price","bid_price","bid_amount"]
[1764987396903,8.97,133.09,133.06,0.69]
[1764987397105,18.79066873,133.08,133.06,0.69]
[1764987397756,8.97,133.09,133.06,3.72597284]
[1764987398033,27.76066873,133.09,133.06,3.72597284]
[1764987398216,27.76066873,133.09,133.07,0.69]
[1764987398532,8.97,133.09,133.07,0.69]
[1764987398939,7.51545764,133.08,133.05,7.51545764]
[1764987399116,7.51545764,133.08,133.06,3.70597284]
[1764987399436,8.97,133.09,133.06,3.70597284]
[1764987399614,27.76066873,133.09,133.06,3.70597284]
[1764987399813,27.76066873,133.09,133.06,11.22136806]
[1764987400009,27.76066873,133.09,133.07,0.67]
[1764987400636,18.79066873,133.09,133.07,3.70597284]
[1764987400833,27.58907557,133.13,133.07,3.70597284]
[1764987400834,8.26,133.13,133.08,3.03597284]
[1764987401136,27.05066873,133.13,133.09,3.03597284]
[1764987401349,27.74066873,133.13,133.09,3.70597284]
[1764987401636,27.74066873,133.13,133.1,0.67]
[1764987403036,35.25227625,133.13,133.1,0.67]
[1764987403425,16.46160752,133.13,133.1,0.67]
[1764987404042,8.26,133.13,133.1,11.21910355]
[1764987404215,8.26,133.13,133.1,3.70597284]
[1764987404417,8.26,133.13,133.11,0.67]
[1764987404817,8.95,133.13,133.11,0.67]
[1764987406154,8.26,133.13,133.11,0.67]
[1764987407442,8.95,133.13,133.11,0.67]
[1764987409248,8.95,133.13,133.1,3.70597284]
[1764987411452,0.69,133.13,133.1,3.70597284]
[1764987411628,8.95,133.13,133.1,3.70597284]
[1764987412148,0.69,133.13,133.1,3.70597284]
[1764987412332,8.95,133.13,133.1,3.70597284]
[1764987412849,0.69,133.13,133.1,3.70597284]
[1764987413049,8.95,133.13,133.1,3.70597284]
[1764987413549,8.95,133.13,133.11,0.67]
[1764987417832,8.26,133.13,133.07,26.30103668]
[1764987418060,0.67,133.12,133.08,3.73597284]
[1764987418438,0.67,133.12,133.09,0.7]
[1764987421362,0.67,133.12,133.09,8.21356672]
[1764987421554,0.67,133.12,133.1,0.7]
[1764987423056,103.0,133.13,133.1,8.21314544]
[1764987423248,111.26,133.13,133.1,11.24911828]
[1764987423444,0.67,133.12,133.09,0.7]
[1764987423649,3.70597284,133.12,133.07,3.73597284]
[1764987423962,8.26,133.11,133.07,3.73597284]
[1764987424142,8.93,133.11,133.08,0.7]
[1764987424458,8.93,133.11,133.08,8.21387965]
[1764987425847,8.26,133.11,133.09,0.7]
[1764987435051,110.51167255,133.13,133.09,11.24963469]
[1764987435284,8.26,133.12,133.09,11.24963469]
[1764987435548,8.26,133.12,133.1,0.71]
[1764987436671,111.20167255,133.13,133.1,8.22304522]
[1764987436672,111.26,133.13,133.1,8.22304522]
[1764987436973,111.26,133.13,133.11,0.71]
[1764987437351,111.95,133.13,133.11,0.71]
[1764987440953,111.95,133.13,133.1,0.71]
[1764987441265,111.95,133.13,133.11,0.71]
[1764987442964,41.33573803,133.16,133.11,3.74597284]
[1764987442965,3.72597284,133.16,133.11,3.74597284]
[1764987443165,111.26,133.15,133.11,3.74597284]
[1764987443473,111.26,133.15,133.12,0.71]
[1764987444170,111.95,133.15,133.12,0.71]
[1764987445766,118.77036916,133.15,133.12,0.71]
[1764987446075,119.46036916,133.15,133.12,0.71]
[1764987447576,118.77036916,133.15,133.12,0.71]
[1764987447876,0.69,133.14,133.12,0.71]
[1764987449584,119.46036916,133.15,133.12,0.71]
[1764987451060,119.46036916,133.15,133.13,3.03597284]
[1764987451061,103.0,133.15,133.13,3.03597284]
[1764987451567,103.0,133.15,133.13,3.74597284]
[1764987451885,103.0,133.15,133.13,3.03597284]
[1764987452086,103.0,133.15,133.13,11.25709189]
[1764987455783,3.03597284,133.18,133.14,3.74597284]
[1764987455784,103.0,133.18,133.14,3.74597284]
[1764987455968,8.26,133.17,133.15,3.03597284]
[1764987456162,8.26,133.17,133.15,0.71]
[1764987456368,111.95,133.18,133.15,0.71]
[1764987456675,103.69,133.18,133.15,0.71]
[1764987456873,111.95,133.18,133.15,0.71]
[1764987457075,111.95,133.18,133.15,12.9590121]
[1764987459785,0.7,133.18,133.16,0.67]
[1764987459985,0.9,133.19,133.16,0.67]
[1764987460595,0.9,133.19,133.15,12.2490121]
[1764987460764,0.7,133.18,133.16,8.17948431]
[1764987460965,0.9,133.19,133.16,8.17948431]
[1764987461992,9.14,133.19,133.16,8.17948431]
[1764987462691,9.14,133.19,133.16,12.91834166]
[1764987465595,9.14,133.19,133.17,4.73885735]
[1764987466785,9.14,133.19,133.17,12.24795152]
[1764987466992,8.44,133.19,133.17,12.91795152]
[1764987467179,8.44,133.19,133.18,4.73885735]
[1764987467385,8.44,133.19,133.18,5.40885735]
[1764987467896,8.44,133.19,133.18,12.91749228]
[1764987468086,0.2,133.19,133.18,12.91749228]
[1764987473805,0.2,133.19,133.18,20.21749228]
[1764987475485,0.2,133.19,133.18,23.22331606]
[1764987480493,0.2,133.19,133.18,39.53218006]
[1764987482812,0.2,133.2,133.18,39.53218006]
[1764987483009,0.2,133.2,133.19,13.66885735]
[1764987483210,0.2,133.21,133.19,27.21765962]
[1764987483397,0.2,133.21,133.2,10.1677147]
[1764987484407,0.2,133.21,133.2,20.68014275]
[1764987485595,0.2,133.21,133.2,15.9412854]
[1764987486099,0.2,133.21,133.2,20.68014275]
[1764987488710,0.2,133.21,133.2,11.20242805]
[1764987488916,0.2,133.21,133.2,20.68014275]
[1764987489796,0.2,133.21,133.2,15.9412854]
[1764987490611,0.2,133.21,133.2,12.93636485]
[1764987499122,0.2,133.21,133.2,12.24636485]
[1764987499352,0.2,133.21,133.15,72.85645641]
[1764987499353,0.89,133.21,133.09,17.89630708]
[1764987499514,16.14261144,133.21,133.16,12.24823703]
[1764987499710,0.69,133.2,133.16,12.24823703]
[1764987500110,23.24045664,133.2,133.16,12.24823703]
[1764987500512,0.69,133.19,133.16,4.73885735]
[1764987500716,0.69,133.19,133.14,7.510849]
[1764987500936,0.69,133.19,133.15,4.73885735]
[1764987501124,18.77951898,133.18,133.15,4.73885735]
[1764987501635,0.69,133.17,133.15,4.73885735]
[1764987502055,0.69,133.17,133.15,12.24908773]
[1764987502413,0.69,133.17,133.15,7.51023038]
[1764987503131,0.69,133.17,133.14,12.24959629]
[1764987503717,0.69,133.17,133.14,7.51073894]
[1764987505934,0.69,133.17,133.14,12.24959629]
[1764987507320,103.69,133.19,133.15,5.40885735]
[1764987507524,0.69,133.18,133.16,12.24862004]
[1764987508737,103.69,133.19,133.16,12.91862004]
[1764987509038,0.69,133.18,133.16,12.24862004]
[1764987510417,0.69,133.18,133.13,4.73885735]
[1764987510418,13.68885735,133.18,133.13,4.73885735]
[1764987510817,0.69,133.17,133.13,4.73885735]
[1764987511433,0.69,133.17,133.13,12.250155]
[1764987512418,8.19926134,133.17,133.13,12.250155]
[1764987512819,0.69,133.16,133.13,12.250155]
[1764987515138,8.19992616,133.16,133.12,12.250728]
[1764987515345,8.19992616,133.16,133.12,4.73885735]
[1764987515645,0.69,133.15,133.12,4.73885735]
[1764987516432,0.69,133.15,133.12,3.03387621]
[1764987523660,0.69,133.15,133.12,3.71387621]
[1764987523867,0.69,133.15,133.12,0.68]
[1764987524032,134.48723899,133.16,133.12,11.2256501]
[1764987524233,111.93,133.16,133.12,11.2256501]
[1764987524458,0.67,133.15,133.12,11.2256501]
[1764987525533,0.67,133.15,133.11,8.26]
[1764987525534,0.67,133.15,133.11,10.54645822]
[1764987525735,0.67,133.15,133.11,7.51258201]
[1764987526146,8.18044832,133.15,133.11,7.51258201]
[1764987526536,0.67,133.14,133.11,7.51258201]
[1764987526736,0.67,133.14,133.11,8.19258201]
[1764987528954,8.18098196,133.14,133.11,0.68]
[1764987529175,8.18098196,133.14,133.1,10.5469019]
[1764987529461,0.67,133.13,133.1,10.5469019]
[1764987530663,0.67,133.13,133.1,11.2269019]
[1764987531246,0.67,133.13,133.11,0.68]
[1764987535866,8.18156615,133.13,133.1,3.03387621]
[1764987536048,8.18156615,133.13,133.1,3.72387621]
[1764987536572,7.51156615,133.13,133.1,3.03387621]
[1764987536752,0.72,133.12,133.09,3.03387621]
[1764987537151,0.72,133.12,133.08,11.23794319]
[1764987538047,0.72,133.12,133.08,10.54794319]
[1764987538258,0.72,133.12,133.09,0.69]
[1764987540147,8.23224804,133.12,133.07,8.20461031]
[1764987540477,11.26612425,133.12,133.07,7.51461031]
[1764987540680,0.72,133.11,133.07,7.51461031]
[1764987541163,8.23290805,133.11,133.07,7.51461031]
[1764987541363,8.23290805,133.11,133.07,8.20461031]
[1764987541586,0.72,133.1,133.07,11.23848652]
[1764987542680,110.51201352,133.13,133.08,3.03387621]
[1764987542876,8.26,133.12,133.09,3.03387621]
[1764987543058,8.98,133.12,133.09,3.72387621]
[1764987543470,8.98,133.12,133.09,0.69]
[1764987543860,0.72,133.11,133.08,3.72387621]
[1764987544061,8.98,133.12,133.09,0.69]
[1764987544876,0.72,133.12,133.09,8.20342609]
[1764987546782,103.0,133.13,133.1,3.72387621]
[1764987547181,103.0,133.13,133.11,0.69]
[1764987550863,103.71,133.13,133.06,26.40392303]
[1764987551067,0.71,133.12,133.07,0.66]
[1764987551267,0.71,133.12,133.08,3.03387621]
[1764987551686,0.71,133.12,133.08,3.69387621]
[1764987551885,0.71,133.12,133.08,3.03387621]
[1764987552063,0.71,133.12,133.09,8.17361617]
[1764987554889,110.51149681,133.13,133.09,7.51361617]
[1764987555075,111.22149681,133.13,133.1,0.66]
[1764987555281,103.71,133.13,133.1,0.66]
[1764987556792,0.71,133.12,133.1,7.5129804]
[1764987556990,103.71,133.13,133.1,8.1729804]
[1764987559931,111.97,133.13,133.1,8.1729804]
[1764987560221,3.74387621,133.12,133.07,0.66]
[1764987560383,3.03387621,133.1,133.06,0.1]
[1764987560888,8.97,133.09,133.06,0.76]
[1764987562931,8.97,133.09,133.06,8.27537513]
[1764987564114,0.71,133.08,133.06,0.1]
[1764987564406,3.74387621,133.08,133.06,0.1]
[1764987564618,0.71,133.08,133.06,0.1]
[1764987565114,3.74387621,133.08,133.06,0.1]
[1764987565712,0.71,133.07,133.06,0.1]
[1764987566214,11.25871802,133.07,133.06,0.1]
[1764987566385,28.32866294,133.07,133.06,0.1]
[1764987578422,30.04253603,133.07,133.06,0.1]
[1764987579321,23.82324785,133.08,133.06,0.8]
[1764987579520,8.26,133.07,133.06,0.8]
[1764987579909,8.26,133.07,133.06,0.1]
[1764987585632,8.26,133.07,133.06,0.8]
[1764987585825,23.82324785,133.08,133.06,0.8]
[1764987586131,8.26,133.07,133.06,0.8]
[1764987588840,23.82324785,133.08,133.06,0.8]
[1764987589132,8.26,133.07,133.06,0.8]
[1764987591127,15.03027754,133.09,133.06,0.8]
[1764987591335,15.77392189,133.09,133.06,0.8]
[1764987592234,16.47392189,133.09,133.06,0.8]
[1764987592436,21.22167119,133.09,133.06,0.8]
[1764987593310,124.22167119,133.09,133.06,0.8]
[1764987594028,123.52167119,133.09,133.06,0.8]
[1764987594333,0.7,133.08,133.06,0.1]
[1764987594531,13.0077493,133.07,133.06,0.1]
[1764987594734,21.81769422,133.07,133.06,0.1]
[1764987594915,22.51769422,133.07,133.06,0.1]
[1764987595715,13.0077493,133.07,133.06,0.1]
[1764987596021,8.26,133.07,133.06,0.8]
[1764987598535,12.26222931,133.08,133.06,0.1]
[1764987598834,12.96222931,133.08,133.06,0.1]
[1764987599049,8.26,133.07,133.06,0.1]
[1764987599339,111.26,133.07,133.06,0.1]
[1764987599813,118.77484181,133.07,133.06,0.1]
[1764987600734,7.61688311,133.09,133.06,0.8]
[1764987600925,8.26,133.09,133.06,0.8]
[1764987604043,8.26,133.09,133.06,13.06302027]
[1764987604542,8.26,133.09,133.07,0.7]
[1764987607742,8.26,133.1,133.07,12.9625554]
[1764987608338,8.26,133.1,133.08,0.7]
[1764987615936,12.98053036,133.11,133.08,0.7]
[1764987616245,15.77331079,133.1,133.08,0.7]
[1764987616451,7.51331079,133.1,133.08,0.7]
[1764987616753,15.77331079,133.1,133.08,0.7]
[1764987618551,8.26,133.1,133.08,0.7]
[1764987626345,103.0,133.11,133.08,0.7]
[1764987626653,8.26,133.1,133.08,0.7]
[1764987630481,111.23260964,133.11,133.08,0.7]
[1764987630652,8.26,133.1,133.08,0.7]
[1764987636263,110.51260964,133.11,133.08,0.7]
[1764987636448,8.26,133.1,133.08,0.7]
[1764987638168,8.26,133.1,133.08,8.21423614]
[1764987638363,8.26,133.1,133.09,0.69]
[1764987638856,103.0,133.11,133.09,0.69]
[1764987639156,8.26,133.1,133.09,0.69]
[1764987639770,103.0,133.11,133.09,0.69]
[1764987642871,103.0,133.11,133.09,8.20366247]
[1764987643072,103.0,133.11,133.1,0.72]
[1764987644956,103.0,133.11,133.09,7.51366247]
[1764987645157,103.0,133.11,133.09,8.23366247]
[1764987645670,103.0,133.11,133.09,7.51366247]
[1764987645874,103.0,133.11,133.1,0.72]
[1764987646258,103.0,133.11,133.1,8.233148]
[1764987647581,103.0,133.11,133.1,0.72]
[1764987647768,103.0,133.11,133.1,8.233148]
[1764987647956,103.0,133.11,133.09,8.23361461]
[1764987648151,103.0,133.11,133.09,0.72]
[1764987649181,124.82270055,133.11,133.09,0.72]
[1764987651180,103.0,133.11,133.09,0.72]
[1764987651568,103.0,133.11,133.09,8.23370478]
[1764987651781,103.0,133.11,133.1,0.65]
[1764987654684,103.0,133.11,133.09,7.51370478]
[1764987654873,103.0,133.11,133.09,8.16370478]
[1764987656496,103.0,133.11,133.1,0.65]
[1764987657392,103.0,133.11,133.09,8.16370478]
[1764987657589,103.0,133.11,133.09,10.54997057]
[1764987657764,8.26,133.13,133.1,3.68626579]
[1764987658083,27.04643476,133.13,133.1,3.68626579]
[1764987658274,27.04643476,133.13,133.11,0.65]
[1764987658874,8.26,133.13,133.11,0.65]
[1764987659784,125.56063169,133.14,133.11,8.16253017]
[1764987660098,133.82063169,133.14,133.11,8.16253017]
[1764987660260,125.56063169,133.14,133.12,0.65]
[1764987660467,103.0,133.14,133.12,3.68626579]
[1764987660890,103.0,133.14,133.13,0.65]
[1764987663192,8.26,133.15,133.13,11.19772075]
[1764987663371,8.95,133.17,133.13,11.19772075]
[1764987663566,30.76772473,133.17,133.14,0.65]
[1764987664696,30.76772473,133.17,133.14,8.16077428]
[1764987665593,30.76772473,133.17,133.14,7.51077428]
[1764987665774,30.76772473,133.17,133.15,0.65]
[1764987666867,0.2,133.21,133.16,3.03626579]
[1764987667067,0.2,133.21,133.19,3.03626579]
[1764987667298,0.2,133.21,133.2,0.65]
[1764987668269,0.2,133.21,133.19,0.65]
[1764987668473,0.2,133.21,133.19,3.68626579]
[1764987668776,0.2,133.21,133.19,10.98626579]
[1764987668975,0.2,133.21,133.2,0.7]
[1764987669767,0.2,133.21,133.18,7.50820058]
[1764987669965,0.92,133.21,133.17,7.50912994]
[1764987670185,0.92,133.21,133.17,11.24539573]
[1764987670496,10.54266865,133.2,133.18,0.7]
[1764987670675,0.2,133.21,133.18,0.7]
[1764987671284,10.74266865,133.21,133.18,0.7]
[1764987673275,10.74266865,133.21,133.18,11.24441814]
[1764987673695,10.74266865,133.21,133.19,0.7]
[1764987673891,0.2,133.21,133.19,0.7]
[1764987677984,22.74537256,133.21,133.19,0.7]
[1764987678503,0.2,133.21,133.19,0.7]
[1764987679287,3.75626579,133.2,133.16,0.7]
[1764987679489,3.03626579,133.18,133.14,0.7]
[1764987679886,0.72,133.18,133.14,0.7]
[1764987680084,8.24,133.17,133.14,0.7]
[1764987682104,15.74963462,133.17,133.14,0.7]
[1764987682712,7.50963462,133.17,133.14,0.7]
[1764987683189,15.75197765,133.16,133.14,0.7]
[1764987686619,15.75197765,133.16,133.14,3.73626579]
[1764987686791,110.50883708,133.18,133.14,3.73626579]
[1764987686995,15.75197765,133.17,133.15,0.7]
[1764987688614,0.72,133.16,133.13,3.73626579]
[1764987688807,23.26122246,133.17,133.14,0.7]
[1764987688808,23.98122246,133.17,133.14,0.7]
[1764987689397,8.22924481,133.17,133.14,0.7]
[1764987689704,15.75165288,133.16,133.14,0.7]
[1764987695031,16.47165288,133.16,133.14,0.7]
[1764987695409,15.75165288,133.16,133.14,0.7]
[1764987695610,16.47165288,133.16,133.14,0.7]
[1764987697212,16.47165288,133.16,133.12,15.7518404]
[1764987697213,23.98149589,133.16,133.12,19.48810619]
[1764987697521,8.22984301,133.16,133.13,0.7]
[1764987697729,19.48810619,133.15,133.13,0.7]
[1764987699203,20.20810619,133.15,133.13,0.7]
[1764987699625,0.72,133.14,133.11,3.03626579]
[1764987699813,0.72,133.14,133.1,19.49920597]
[1764987700207,0.72,133.14,133.11,0.71]
[1764987700421,22.55893521,133.13,133.11,0.71]
[1764987703529,0.72,133.12,133.08,7.51389016]
[1764987703734,0.72,133.12,133.08,12.9656012]
[1764987704121,22.56232843,133.11,133.08,12.9656012]
[1764987704735,23.28232843,133.11,133.08,12.9656012]
[1764987705430,22.56232843,133.11,133.08,8.22389016]
[1764987705620,0.72,133.1,133.07,21.2064602]
[1764987706005,0.72,133.1,133.06,12.35704459]
[1764987706219,0.72,133.1,133.06,13.06704459]
[1764987706425,18.89211603,133.09,133.06,13.06704459]
[1764987706933,19.61211603,133.09,133.06,13.06704459]
[1764987707111,0.72,133.09,133.06,13.06704459]
[1764987709411,0.71,133.1,133.07,5.41171104]
[1764987711317,0.71,133.1,133.07,12.92634383]
[1764987711519,7.51278288,133.11,133.08,5.41171104]
[1764987712032,8.22278288,133.11,133.08,5.41171104]
[1764987712231,111.22278288,133.11,133.08,5.41171104]
[1764987718325,0.71,133.1,133.07,4.74171104]
[1764987718738,0.71,133.1,133.07,5.41171104]
[1764987719043,111.22278288,133.11,133.08,0.67]
[1764987720950,0.71,133.1,133.07,12.25624649]
[1764987721151,0.71,133.1,133.07,12.92624649]
[1764987721930,110.51278288,133.11,133.08,0.67]
[1764987722136,103.71,133.11,133.08,8.18410377]
[1764987722337,103.0,133.11,133.09,0.67]
[1764987722536,103.0,133.12,133.09,0.67]
[1764987722736,103.0,133.12,133.09,5.41171104]
[1764987722948,103.0,133.12,133.1,0.67]
[1764987723253,103.0,133.12,133.09,5.41171104]
[1764987723254,103.71,133.12,133.09,5.41171104]
[1764987724455,103.71,133.12,133.09,12.92515674]
[1764987724745,103.0,133.12,133.09,8.1834457]
[1764987724951,103.71,133.12,133.09,8.1834457]
[1764987725553,0.71,133.11,133.08,12.25584571]
[1764987725747,0.71,133.11,133.07,5.41171104]
[1764987725957,25.96755675,133.11,133.06,12.35699934]
[1764987726258,110.51359579,133.1,133.06,13.02699934]
[1764987726546,111.22359579,133.1,133.06,0.1]
[1764987726753,0.71,133.09,133.06,0.1]
[1764987727134,0.71,133.09,133.06,0.77]
[1764987727335,0.71,133.09,133.06,0.1]
[1764987728158,0.71,133.09,133.06,4.84171104]
[1764987728345,0.71,133.09,133.06,5.51171104]
[1764987730856,0.71,133.09,133.06,13.0270648]
[1764987732363,111.22359579,133.1,133.07,0.67]
[1764987732754,0.71,133.09,133.06,12.3570648]
[1764987733057,0.71,133.09,133.07,0.67]
[1764987733957,0.71,133.09,133.07,5.41171104]
[1764987734149,17.018864,133.13,133.08,4.74171104]
[1764987734338,25.278864,133.13,133.1,4.74171104]
[1764987734538,0.71,133.12,133.1,4.74171104]
[1764987735959,0.71,133.12,133.1,5.41171104]
[1764987736160,0.71,133.12,133.1,4.74171104]
[1764987736360,118.77094398,133.14,133.1,12.25465782]
[1764987736574,111.26,133.14,133.12,4.74171104]
[1764987736778,111.26,133.14,133.11,5.41171104]
[1764987737073,103.0,133.14,133.1,12.25465782]
[1764987737370,103.71,133.14,133.11,0.67]
[1764987737964,103.71,133.14,133.11,5.41171104]
[1764987740665,103.71,133.14,133.11,12.92420577]
[1764987740852,103.0,133.14,133.12,5.41171104]
[1764987742439,103.0,133.14,133.12,12.92367841]
[1764987743570,18.78359547,133.17,133.13,5.41171104]
[1764987743752,120.018864,133.18,133.15,4.74171104]
[1764987744157,127.52750262,133.18,133.15,0.67]
[1764987745960,0.71,133.17,133.14,0.67]
[1764987746151,0.71,133.17,133.14,5.41171104]
[1764987747268,0.71,133.17,133.14,12.9225939]
[1764987747574,8.2195294,133.17,133.13,5.41171104]
[1764987748274,0.71,133.16,133.13,12.92315516]
[1764987748759,145.5976742,133.18,133.14,12.92254882]
[1764987748958,103.0,133.18,133.15,4.74171104]
[1764987749159,103.71,133.18,133.15,12.92180112]
[1764987749872,103.0,133.18,133.15,12.25180112]
[1764987750071,103.71,133.18,133.15,12.92180112]
[1764987752174,103.0,133.18,133.16,5.41171104]
[1764987753274,103.0,133.18,133.16,12.92114287]
[1764987754055,103.0,133.18,133.17,0.67]
[1764987754252,103.0,133.18,133.16,12.92114287]
[1764987754671,103.0,133.18,133.16,12.25114287]
[1764987754976,103.71,133.18,133.16,12.25114287]
[1764987755976,103.71,133.18,133.16,12.92114287]
[1764987758180,103.0,133.18,133.16,12.92114287]
[1764987758655,103.0,133.18,133.16,8.17943183]
[1764987758855,103.0,133.18,133.16,12.92114287]
[1764987759056,103.72,133.18,133.15,8.17011422]
[1764987759256,103.72,133.18,133.15,12.91182526]
[1764987759579,103.72,133.18,133.16,14.80975736]
[1764987761083,103.72,133.18,133.16,17.84228289]
[1764987764287,103.72,133.18,133.16,18.50228289]
[1764987765288,103.72,133.18,133.16,7.3]
[1764987765607,103.72,133.18,133.15,11.20273551]
[1764987769170,0.71,133.17,133.14,10.5433075]
[1764987769369,0.71,133.17,133.14,11.2333075]
[1764987770176,0.71,133.17,133.14,10.5433075]
[1764987770371,0.71,133.17,133.14,11.2333075]
[1764987771781,11.84247045,133.16,133.11,3.72252553]
[1764987772191,0.71,133.15,133.12,0.69]
[1764987772375,0.71,133.15,133.12,1.39]
[1764987772772,0.71,133.15,133.12,8.90197015]
[1764987772972,0.71,133.15,133.12,11.93449568]
[1764987773488,0.71,133.15,133.12,8.21197015]
[1764987774198,8.97,133.15,133.12,8.21197015]
[1764987774590,8.97,133.15,133.12,11.24449568]
[1764987774777,0.71,133.14,133.12,0.7]
[1764987775190,8.2210475,133.14,133.1,10.54531307]
[1764987775690,0.71,133.13,133.1,11.23531307]
[1764987776501,0.71,133.13,133.11,3.03252553]
[1764987777292,0.71,133.13,133.11,10.5450742]
[1764987777593,18.8030204,133.15,133.11,10.5450742]
[1764987777594,8.26,133.15,133.12,3.72252553]
[1764987777896,0.71,133.14,133.12,3.03252553]
[1764987778892,0.71,133.14,133.11,11.8350742]
[1764987779894,8.22089986,133.14,133.11,0.6]
[1764987780374,0.71,133.13,133.1,10.54551639]
[1764987780575,0.71,133.13,133.1,11.23551639]
[1764987781598,0.71,133.13,133.1,10.54551639]
[1764987781900,0.71,133.13,133.11,3.72252553]
[1764987782393,8.22299086,133.14,133.11,3.72252553]
[1764987782592,131.15133445,133.16,133.11,3.72252553]
[1764987782593,135.78882821,133.16,133.13,3.03252553]
[1764987782800,135.78882821,133.16,133.12,0.69]
[1764987782801,0.71,133.15,133.12,3.72252553]
[1764987783600,0.71,133.15,133.12,0.69]
[1764987784706,0.71,133.15,133.12,8.20193269]
[1764987784888,128.278864,133.16,133.12,11.23445822]
[1764987785089,0.71,133.15,133.12,11.23445822]
[1764987785805,103.0,133.16,133.13,0.69]
[1764987786103,103.0,133.16,133.13,3.72252553]
[1764987786790,103.71,133.16,133.13,11.2338851]
[1764987788901,103.71,133.16,133.13,8.20135957]
[1764987789305,103.71,133.16,133.14,0.66]
[1764987789306,103.0,133.16,133.14,0.66]
[1764987789494,103.0,133.16,133.15,3.03252553]
[1764987790006,103.0,133.16,133.15,3.69252553]
[1764987790300,0.66,133.19,133.15,3.69252553]
[1764987790498,16.42771005,133.2,133.16,0.66]
[1764987790705,16.42771005,133.2,133.16,3.69252553]
[1764987790891,0.66,133.19,133.16,3.69252553]
[1764987791606,16.42771005,133.2,133.17,0.66]
[1764987791808,15.76771005,133.2,133.17,0.66]
[1764987792107,0.66,133.19,133.17,0.66]
[1764987792310,0.66,133.19,133.16,10.54211167]
[1764987792602,0.66,133.19,133.16,11.20211167]
[1764987798694,3.03252553,133.17,133.13,3.03252553]
[1764987798894,3.03252553,133.17,133.13,3.69252553]
[1764987799096,0.66,133.16,133.12,3.69252553]
[1764987799817,0.66,133.16,133.13,8.17144752]
[1764987800514,0.66,133.16,133.13,11.20397305]
[1764987801419,38.32507522,133.17,133.13,10.54397305]
[1764987801718,38.98507522,133.17,133.14,0.66]
[1764987802321,0.66,133.16,133.14,0.66]
[1764987802618,0.66,133.16,133.13,11.20397305]
[1764987803503,0.66,133.16,133.13,8.17144752]
[1764987803698,0.66,133.16,133.13,11.20397305]
[1764987806713,8.16993766,133.16,133.12,10.54445836]
[1764987806913,8.26,133.15,133.12,7.51193283]
[1764987807222,8.92,133.15,133.12,7.51193283]
[1764987807609,103.66,133.14,133.11,4.33252553]
[1764987807794,103.66,133.14,133.1,19.46546442]
[1764987808200,0.66,133.13,133.1,19.46546442]
[1764987808897,0.66,133.13,133.1,18.80546442]
[1764987809103,0.66,133.13,133.11,0.66]
[1764987809631,111.17118529,133.14,133.11,0.66]
[1764987810212,129.97664971,133.14,133.11,0.66]
[1764987810415,0.66,133.13,133.1,19.46546442]
[1764987810720,111.17118529,133.14,133.11,0.66]
[1764987813526,133.73181698,133.14,133.11,0.66]
[1764987814429,111.17118529,133.14,133.11,0.66]
[1764987815938,103.0,133.14,133.11,11.20509262]
[1764987816314,103.0,133.14,133.12,0.66]
[1764987816514,103.66,133.14,133.12,0.66]
[1764987817017,103.0,133.14,133.12,0.66]
[1764987817222,103.0,133.14,133.12,8.1719079]
[1764987818534,103.0,133.17,133.13,4.29252553]